bitfinex/quotes_BTCUSD_20251021
["timestamp","ask_amount","ask_price","bid_price","bid_amount"]
[1761084962954,0.0323144,110670.0,110660.0,0.19766386]
[1761084963374,0.02751352,110670.0,110660.0,0.6173872]
[1761084963576,0.02751352,110670.0,110660.0,0.61739608]
[1761084963940,0.00034127,110670.0,110660.0,0.61739608]
[1761084965828,0.00034127,110670.0,110660.0,0.65357836]
[1761084968484,0.00034127,110670.0,110660.0,1.05357836]
[1761084975533,0.00034127,110670.0,110660.0,0.72367403]
[1761084976004,0.00034127,110670.0,110660.0,1.05357836]
[1761084978464,0.00034127,110670.0,110660.0,1.06357835]
[1761084978867,0.00034127,110670.0,110660.0,1.47489577]
[1761084980335,0.00034127,110670.0,110660.0,1.45802812]
[1761084980545,0.00034127,110670.0,110660.0,1.47489486]
[1761084982342,0.00034127,110670.0,110660.0,1.81489486]
[1761084982545,0.00034127,110670.0,110660.0,1.82489485]
[1761084983963,1e-08,110680.0,110670.0,0.52071744]
[1761084984191,0.00049151,110680.0,110670.0,1.50653624]
[1761084984406,0.00049151,110680.0,110670.0,1.25943855]
[1761084984730,0.00083273,110680.0,110670.0,1.65943855]
[1761084986824,0.00083273,110680.0,110670.0,1.64257181]
[1761084989279,0.00083273,110680.0,110670.0,1.13837644]
[1761084989481,0.00083273,110680.0,110670.0,0.67053645]
[1761084989638,0.24793042,110680.0,110670.0,0.27053645]
[1761084990086,0.70289697,110680.0,110660.0,0.18073377]
[1761084990285,0.24709769,110670.0,110660.0,0.27055278]
[1761084990459,0.42781513,110670.0,110660.0,0.20757901]
[1761084991012,0.42781513,110670.0,110660.0,0.11776]
[1761084991314,0.20870159,110680.0,110660.0,0.11776]
[1761084991454,0.02800047,110680.0,110670.0,0.18071744]
[1761084991874,0.02800047,110680.0,110670.0,0.19878918]
[1761084992072,0.02800047,110680.0,110670.0,0.42781513]
[1761084992700,0.02800047,110680.0,110670.0,0.51763414]
[1761084992909,0.00083273,110680.0,110670.0,0.51763414]
[1761084993190,0.00083273,110680.0,110670.0,0.55381642]
[1761084993558,0.00083273,110680.0,110670.0,0.95381642]
[1761084995298,1e-08,110680.0,110670.0,3.54091411]
[1761084995518,1e-08,110680.0,110670.0,3.56091409]
[1761084996370,1e-08,110680.0,110670.0,3.59794331]
[1761084997893,1e-08,110680.0,110670.0,3.56091409]
[1761084998114,1e-08,110680.0,110670.0,1.29381642]
[1761084998320,1e-08,110680.0,110670.0,1.5509141]
[1761084999488,1e-08,110680.0,110670.0,3.56091409]
[1761085000195,1e-08,110680.0,110670.0,1.56091409]
[1761085001567,1e-08,110680.0,110670.0,0.91763414]
[1761085002024,1e-08,110680.0,110670.0,0.95381642]
[1761085002944,1e-08,110680.0,110670.0,1.20091411]
[1761085003172,1e-08,110680.0,110670.0,0.71671872]
[1761085003598,1e-08,110680.0,110670.0,1.2109141]
[1761085007229,1e-08,110680.0,110670.0,0.55381642]
[1761085007436,1e-08,110680.0,110670.0,0.27053645]
[1761085007896,1e-08,110680.0,110670.0,0.51763414]
[1761085009419,1e-08,110680.0,110670.0,0.27053645]
[1761085009855,1e-08,110680.0,110670.0,0.51763414]
[1761085011021,0.06280001,110680.0,110670.0,0.51763414]
[1761085011214,0.06280001,110680.0,110670.0,0.91763414]
[1761085013968,0.06280001,110680.0,110670.0,1.16473183]
[1761085016631,0.06280001,110680.0,110670.0,1.54091411]
[1761085020915,0.35447546,110720.0,110700.0,0.18065639]
[1761085021100,0.35447546,110720.0,110700.0,0.29813639]
[1761085021101,0.35462285,110720.0,110700.0,0.29813639]
[1761085021325,0.0271626,110710.0,110700.0,0.29813639]
[1761085023366,0.4735198,110720.0,110700.0,0.29813639]
[1761085023594,0.5006824,110720.0,110700.0,0.29813639]
[1761085024399,0.40391568,110720.0,110710.0,0.18065215]
[1761085024599,0.58455151,110720.0,110700.0,0.29813639]
[1761085024803,0.8316492,110720.0,110710.0,0.18065215]
[1761085026826,0.83301353,110720.0,110710.0,0.18065215]
[1761085028493,0.58591584,110720.0,110710.0,0.18065215]
[1761085028671,0.83301353,110720.0,110710.0,0.18065215]
[1761085029134,0.83401353,110720.0,110710.0,0.18065215]
[1761085029282,0.83401353,110720.0,110700.0,0.29813639]
[1761085029482,0.8336492,110720.0,110700.0,0.29813639]
[1761085029686,0.8336492,110720.0,110710.0,0.18065215]
[1761085030174,0.8326492,110720.0,110710.0,0.18065215]
[1761085030537,0.8336492,110720.0,110710.0,0.18065215]
[1761085031134,0.8336492,110720.0,110700.0,0.11748]
[1761085031135,0.18065215,110710.0,110700.0,0.11748]
[1761085031343,0.42774984,110710.0,110700.0,0.29814847]
[1761085031940,0.45491266,110710.0,110700.0,0.29814847]
[1761085032353,0.27426051,110710.0,110700.0,0.29814847]
[1761085032569,0.27526051,110710.0,110700.0,0.29814847]
[1761085032768,0.02816282,110710.0,110700.0,0.29814847]
[1761085033329,2.27426051,110720.0,110710.0,0.18065215]
[1761085033488,0.45489634,110720.0,110710.0,0.18065215]
[1761085033895,0.49077515,110720.0,110710.0,0.18065215]
[1761085034104,0.06304163,110720.0,110710.0,0.18065215]
[1761085034262,0.31013932,110720.0,110710.0,0.18065215]
[1761085034462,0.06304163,110720.0,110710.0,0.18065215]
[1761085034698,0.49077515,110720.0,110710.0,0.18065215]
[1761085034912,0.24367746,110720.0,110710.0,0.18065215]
[1761085035248,0.49313948,110720.0,110710.0,0.18065215]
[1761085035382,0.49413948,110720.0,110710.0,0.18065215]
[1761085036359,0.30822615,110720.0,110710.0,0.18065215]
[1761085037598,0.34437318,110720.0,110710.0,0.18065215]
[1761085037885,0.34437318,110720.0,110700.0,0.29814847]
[1761085038152,0.34300885,110720.0,110700.0,0.29814847]
[1761085038728,0.34100885,110720.0,110700.0,0.29814847]
[1761085038934,0.21678286,110720.0,110710.0,0.18065215]
[1761085039133,0.46488055,110720.0,110700.0,0.29814847]
[1761085039734,0.46488055,110720.0,110710.0,0.18065215]
[1761085040881,0.21778286,110720.0,110710.0,0.18065215]
[1761085041502,0.21678286,110720.0,110710.0,0.18065215]
[1761085043163,0.55678286,110720.0,110710.0,0.18065215]
[1761085043348,0.56525588,110720.0,110710.0,0.18065215]
[1761085043550,0.55678286,110720.0,110710.0,0.18065215]
[1761085043756,0.18065215,110710.0,110700.0,0.29814847]
[1761085043965,0.55814719,110720.0,110700.0,0.29814847]
[1761085043966,0.55678286,110720.0,110700.0,0.29814847]
[1761085044170,0.00102334,110710.0,110700.0,0.29814847]
[1761085044316,0.18167549,110710.0,110700.0,0.29814847]
[1761085044740,0.00102334,110710.0,110700.0,0.29814847]
[1761085045353,0.18167549,110710.0,110700.0,0.29814847]
[1761085048840,0.18167549,110710.0,110680.0,0.67954096]
[1761085049078,0.18065215,110710.0,110690.0,0.29788346]
[1761085050018,0.18066847,110700.0,110690.0,0.29788346]
[1761085051510,0.18066847,110700.0,110690.0,0.1172]
[1761085051911,0.18066847,110700.0,110690.0,0.29788479]
[1761085052310,0.52066847,110700.0,110690.0,0.1172]
[1761085054422,0.52066847,110700.0,110690.0,0.29788479]
[1761085054856,0.52135076,110700.0,110690.0,0.29788479]
[1761085055393,0.34068229,110700.0,110690.0,0.29788479]
[1761085055841,0.52135076,110700.0,110690.0,0.29788479]
[1761085056061,0.34068229,110700.0,110690.0,0.29788479]
[1761085068004,0.52135076,110700.0,110690.0,0.29788479]
[1761085068416,0.34068229,110700.0,110690.0,0.29788479]
[1761085068827,0.52135076,110700.0,110690.0,0.29788479]
[1761085070118,0.34068229,110700.0,110690.0,0.29788479]
[1761085070341,0.00068229,110700.0,110690.0,0.71715737]
[1761085070554,0.00068229,110700.0,110690.0,0.3877038]
[1761085083800,0.02784583,110700.0,110690.0,0.3877038]
[1761085084223,0.00068229,110700.0,110690.0,0.3877038]
[1761085086043,0.2085143,110700.0,110690.0,0.3877038]
[1761085086219,0.2085143,110700.0,110690.0,0.29788479]
[1761085090757,0.02784583,110700.0,110690.0,0.71715737]
[1761085090969,0.00068229,110700.0,110690.0,0.71715737]
[1761085091410,0.00068229,110700.0,110690.0,1.11715737]
[1761085091620,0.00068229,110700.0,110690.0,0.71715737]
[1761085092052,0.00068229,110700.0,110690.0,1.11715737]
[1761085092254,0.00068229,110700.0,110690.0,0.71715737]
[1761085095441,0.00068229,110700.0,110690.0,0.3877038]
[1761085099468,0.21682988,110720.0,110700.0,0.18065439]
[1761085099672,0.21682988,110720.0,110700.0,0.2704734]
[1761085100283,0.18065215,110710.0,110690.0,0.29787193]
[1761085100495,0.18065215,110710.0,110690.0,0.38769094]
[1761085100677,0.18066847,110700.0,110690.0,0.29788479]
[1761085101519,0.02716491,110700.0,110690.0,0.29788479]
[1761085101873,0.20783338,110700.0,110690.0,0.29788479]
[1761085102290,0.02716491,110700.0,110690.0,0.29788479]
[1761085102796,0.22673699,110720.0,110710.0,0.18065215]
[1761085103400,0.25389873,110720.0,110710.0,0.18065215]
[1761085103976,0.59489873,110720.0,110710.0,0.18065215]
[1761085104699,0.59489873,110720.0,110700.0,0.18065515]
[1761085105103,0.00034108,110710.0,110700.0,0.18065515]
[1761085105502,0.02750282,110710.0,110700.0,0.18065515]
[1761085121605,0.39215856,110720.0,110710.0,0.18065215]
[1761085121809,0.46543087,110720.0,110710.0,0.29725215]
[1761085122007,0.47446266,110720.0,110710.0,0.29725215]
[1761085122153,0.4748037,110720.0,110710.0,0.29725215]
[1761085122560,0.4748037,110720.0,110710.0,0.1166]
[1761085122785,0.4758037,110720.0,110710.0,0.1166]
[1761085123006,0.08364514,110720.0,110710.0,0.1166]
[1761085123204,0.26428504,110720.0,110710.0,0.1166]
[1761085123952,0.26428504,110720.0,110710.0,0.29725215]
[1761085126298,0.26428504,110720.0,110710.0,0.1166]
[1761085126549,0.60428504,110720.0,110710.0,0.1166]
[1761085127960,2.0,110710.0,110690.0,0.18067274]
[1761085128186,0.52911225,110710.0,110700.0,0.18066847]
[1761085128385,0.52911225,110710.0,110690.0,0.29719274]
[1761085128794,0.55627716,110710.0,110690.0,0.29719274]
[1761085130055,0.54782977,110710.0,110690.0,0.29719274]
[1761085135456,0.54782977,110710.0,110700.0,0.18066847]
[1761085137776,0.54782977,110710.0,110690.0,0.29719274]
[1761085140328,0.18066847,110700.0,110690.0,0.29720479]
[1761085140742,0.2078341,110700.0,110690.0,0.29720479]
[1761085140955,0.5478341,110700.0,110690.0,0.11652]
[1761085141167,0.18068479,110690.0,110680.0,0.18069955]
[1761085142117,0.02716792,110690.0,110680.0,0.18069955]
[1761085143135,0.20785271,110690.0,110680.0,0.18069955]
[1761085143490,0.20785271,110690.0,110680.0,0.18169955]
[1761085143828,0.18068479,110690.0,110680.0,0.18169955]
[1761085145520,0.63710847,110700.0,110680.0,0.18169955]
[1761085146585,0.63710847,110700.0,110680.0,0.18069955]
[1761085151833,0.63710847,110700.0,110690.0,0.18068479]
[1761085152479,0.63710847,110700.0,110680.0,0.18069955]
[1761085156486,0.62710847,110700.0,110680.0,0.18069955]
[1761085163867,0.18068479,110690.0,110680.0,0.18069955]
[1761085165357,0.18068479,110690.0,110670.0,0.30619331]
[1761085165578,2.52068479,110690.0,110680.0,0.001]
[1761085165783,2.77337316,110690.0,110680.0,0.001]
[1761085166206,0.18072748,110670.0,110650.0,0.30598079]
[1761085166414,0.29696748,110670.0,110650.0,0.30598079]
[1761085167447,2.0,110660.0,110650.0,0.19023229]
[1761085167660,0.18073377,110660.0,110650.0,0.19023229]
[1761085167862,0.18073377,110660.0,110650.0,0.0004915]
[1761085168070,0.52073377,110660.0,110650.0,0.0004915]
[1761085169107,2.52073377,110660.0,110650.0,0.0004915]
[1761085169764,2.61055278,110660.0,110650.0,0.0004915]
[1761085169967,2.65712682,110660.0,110650.0,0.0004915]
[1761085170180,2.6933091,110660.0,110650.0,0.0004915]
[1761085170385,2.78312811,110660.0,110650.0,0.0004915]
[1761085172808,2.80749487,110660.0,110650.0,0.0004915]
[1761085173037,2.81749486,110660.0,110650.0,0.0004915]
[1761085173232,2.82749485,110660.0,110650.0,0.0004915]
[1761085173438,2.86074315,110660.0,110650.0,0.0004915]
[1761085173709,2.85974315,110660.0,110650.0,0.0004915]
[1761085173908,2.84974316,110660.0,110650.0,0.0004915]
[1761085174045,2.86274315,110660.0,110650.0,0.0004915]
[1761085174661,2.86474315,110660.0,110650.0,0.0004915]
[1761085175020,2.88585872,110660.0,110650.0,0.0004915]
[1761085175422,2.88485872,110660.0,110650.0,0.0004915]
[1761085175757,2.88685872,110660.0,110650.0,0.0004915]
[1761085176180,2.85461042,110660.0,110650.0,0.0004915]
[1761085176639,2.8687844,110660.0,110650.0,0.0004915]
[1761085176841,2.8687844,110660.0,110650.0,1e-08]
[1761085177062,2.85461042,110660.0,110650.0,1e-08]
[1761085177525,2.88685872,110660.0,110650.0,1e-08]
[1761085177884,2.86249196,110660.0,110650.0,1e-08]
[1761085178029,2.87860402,110660.0,110650.0,1e-08]
[1761085178231,2.91068402,110660.0,110650.0,1e-08]
[1761085181052,2.37925797,110660.0,110650.0,1e-08]
[1761085181257,2.43932682,110660.0,110650.0,1e-08]
[1761085181558,2.77932682,110660.0,110650.0,1e-08]
[1761085182000,2.8155091,110660.0,110650.0,1e-08]
[1761085182827,2.32312682,110660.0,110650.0,1e-08]
[1761085182961,2.43932682,110660.0,110650.0,1e-08]
[1761085183149,2.45611528,110660.0,110650.0,1e-08]
[1761085183371,0.34,110640.0,110630.0,0.18966978]
[1761085183578,0.63696644,110640.0,110630.0,0.00014739]
[1761085184026,0.63696644,110640.0,110630.0,0.18093017]
[1761085184813,0.34,110640.0,110630.0,0.18093017]
[1761085185592,0.30776968,110660.0,110640.0,0.18075716]
[1761085185795,2.41389472,110660.0,110650.0,0.18075011]
[1761085185996,0.38671278,110660.0,110640.0,0.18075716]
[1761085186206,0.34,110650.0,110640.0,0.18075716]
[1761085187040,0.52075011,110650.0,110640.0,0.18075716]
[1761085187275,0.52175011,110650.0,110640.0,0.18075716]
[1761085188325,0.52275011,110650.0,110640.0,0.18075716]
[1761085189461,0.52275011,110650.0,110630.0,0.1899693]
[1761085189462,0.18076644,110640.0,110630.0,0.00014739]
[1761085189719,2.63688644,110640.0,110630.0,0.00014739]
[1761085190350,2.52076644,110640.0,110630.0,0.00014739]
[1761085190553,0.63688644,110640.0,110630.0,0.00014739]
[1761085191932,0.66407046,110640.0,110630.0,0.00014739]
[1761085193978,2.66407046,110640.0,110630.0,0.00014739]
[1761085194182,2.54795046,110640.0,110630.0,0.00014739]
[1761085194400,2.66407046,110640.0,110630.0,0.00014739]
[1761085194856,2.54795046,110640.0,110630.0,0.00014739]
[1761085195104,2.66407046,110640.0,110630.0,0.00014739]
[1761085195570,2.54795046,110640.0,110630.0,0.00014739]
[1761085195802,2.66403046,110640.0,110630.0,0.00014739]
[1761085196032,0.66403046,110640.0,110630.0,0.00014739]
[1761085196235,0.68337794,110640.0,110630.0,0.00014739]
[1761085196439,0.66403046,110640.0,110630.0,0.00014739]
[1761085196647,0.68337896,110640.0,110630.0,0.00014739]
[1761085198078,0.51576912,110650.0,110630.0,0.18093017]
[1761085198294,0.53513314,110650.0,110630.0,0.18093017]
[1761085198504,0.34,110640.0,110630.0,0.18093017]
[1761085199142,0.52076644,110640.0,110630.0,0.00014739]
[1761085199781,0.52076644,110640.0,110630.0,0.18093017]
[1761085200151,0.52076644,110640.0,110630.0,0.00014739]
[1761085200946,0.52076644,110640.0,110630.0,0.18093017]
[1761085202870,2.70040446,110640.0,110630.0,0.00014739]
[1761085203079,2.71976945,110640.0,110630.0,0.00014739]
[1761085203570,2.7469546,110640.0,110630.0,0.00014739]
[1761085204133,2.71976945,110640.0,110630.0,0.00014739]
[1761085204539,2.62995044,110640.0,110630.0,0.00014739]
[1761085205157,2.74599044,110640.0,110630.0,0.00014739]
[1761085208427,2.62995044,110640.0,110630.0,0.00014739]
[1761085208628,2.74599044,110640.0,110630.0,0.00014739]
[1761085209013,2.74595044,110640.0,110630.0,0.00014739]
[1761085211151,2.62995044,110640.0,110630.0,0.00014739]
[1761085211360,2.74595044,110640.0,110630.0,0.00014739]
[1761085212345,2.8598206,110640.0,110630.0,1e-08]
[1761085212552,2.92304544,110640.0,110630.0,1e-08]
[1761085212735,2.89914232,110640.0,110630.0,1e-08]
[1761085212941,2.94762074,110640.0,110630.0,1e-08]
[1761085213774,2.94862074,110640.0,110630.0,1e-08]
[1761085213984,2.85880173,110640.0,110630.0,1e-08]
[1761085214190,2.85881941,110640.0,110630.0,1e-08]
[1761085214881,2.85981941,110640.0,110630.0,1e-08]
[1761085215290,2.89209122,110640.0,110630.0,1e-08]
[1761085216395,2.7276128,110640.0,110630.0,1e-08]
[1761085216599,2.84059544,110640.0,110630.0,1e-08]
[1761085217004,2.50059544,110640.0,110630.0,1e-08]
[1761085217208,2.80831139,110640.0,110630.0,1e-08]
[1761085217400,2.65616911,110640.0,110630.0,1e-08]
[1761085217613,0.20213687,110640.0,110630.0,0.18078279]
[1761085217940,2.3326659,110640.0,110630.0,1e-08]
[1761085218139,2.7886259,110640.0,110630.0,1e-08]
[1761085218337,2.74791588,110640.0,110630.0,1e-08]
[1761085218561,2.63095588,110640.0,110630.0,1e-08]
[1761085218763,2.29095588,110640.0,110630.0,1e-08]
[1761085218971,2.63195588,110640.0,110630.0,1e-08]
[1761085219167,2.63095588,110640.0,110630.0,1e-08]
[1761085219571,2.63195588,110640.0,110630.0,1e-08]
[1761085220845,2.72177489,110640.0,110630.0,1e-08]
[1761085223332,2.63195588,110640.0,110630.0,1e-08]
[1761085226339,2.63197384,110640.0,110630.0,1e-08]
[1761085227167,2.61258545,110640.0,110630.0,1e-08]
[1761085227416,2.63197392,110640.0,110630.0,1e-08]
[1761085228348,2.6013577,110640.0,110630.0,1e-08]
[1761085229757,2.69117671,110640.0,110630.0,1e-08]
[1761085229965,2.71056443,110640.0,110630.0,1e-08]
[1761085231146,2.62074542,110640.0,110630.0,1e-08]
[1761085232078,2.6013577,110640.0,110630.0,1e-08]
[1761085235362,0.002,110640.0,110630.0,0.18078279]
[1761085236030,0.18276644,110640.0,110630.0,0.18078279]
[1761085236216,0.52076644,110640.0,110630.0,1e-08]
[1761085238395,0.52076644,110640.0,110630.0,0.18078279]
[1761085239001,0.34,110640.0,110630.0,0.18078279]
[1761085239794,0.52076644,110640.0,110630.0,0.18078279]
[1761085241165,0.34,110640.0,110630.0,0.18078279]
[1761085241364,0.34,110640.0,110630.0,0.29662279]
[1761085244358,0.18977474,110660.0,110650.0,0.18075011]
[1761085244551,0.34,110650.0,110640.0,0.18075366]
[1761085244757,0.52075011,110650.0,110640.0,0.18075366]
[1761085245713,0.34,110650.0,110640.0,0.18075366]
[1761085248710,0.52075011,110650.0,110640.0,0.18075366]
[1761085250577,0.52075011,110650.0,110630.0,1e-08]
[1761085250789,0.18076644,110640.0,110630.0,0.29654279]
[1761085251334,0.52076644,110640.0,110630.0,1e-08]
[1761085251720,2.70040446,110640.0,110630.0,1e-08]
[1761085252343,2.75594065,110640.0,110630.0,1e-08]
[1761085252807,2.78015388,110640.0,110630.0,1e-08]
[1761085253483,2.75694065,110640.0,110630.0,1e-08]
[1761085253625,2.78115388,110640.0,110630.0,1e-08]
[1761085253822,2.69133487,110640.0,110630.0,1e-08]
[1761085254038,2.80809487,110640.0,110630.0,1e-08]
[1761085254237,2.78388164,110640.0,110630.0,1e-08]
[1761085257073,2.78388164,110640.0,110630.0,0.01250001]
[1761085262720,3.02908164,110640.0,110630.0,0.01250001]
[1761085263356,3.11890065,110640.0,110630.0,0.01250001]
[1761085264773,3.14609124,110640.0,110630.0,0.01250001]
[1761085265752,3.17030447,110640.0,110630.0,0.01250001]
[1761085268555,2.92510447,110640.0,110630.0,0.01250001]
[1761085268877,2.93927949,110640.0,110630.0,0.01250001]
[1761085269418,2.84846048,110640.0,110630.0,0.01250001]
[1761085269775,2.84746048,110640.0,110630.0,0.01250001]
[1761085269997,2.84946048,110640.0,110630.0,0.01250001]
[1761085273638,0.18084817,110590.0,110580.0,0.00501953]
[1761085273811,0.52084817,110590.0,110580.0,0.00510781]
[1761085274037,0.68083518,110590.0,110580.0,0.00510781]
[1761085274216,2.79651518,110590.0,110580.0,0.00510781]
[1761085274614,2.0,110580.0,110520.0,0.00510781]
[1761085274886,2.0,110580.0,110470.0,0.16044581]
[1761085274887,0.00999999,110480.0,110470.0,0.16044581]
[1761085275089,0.00966601,110470.0,110460.0,0.18106066]
[1761085275294,0.00966601,110470.0,110460.0,0.19916676]
[1761085275498,0.27989367,110510.0,110490.0,0.18101089]
[1761085275712,0.00083238,110490.0,110480.0,0.18102824]
[1761085275923,0.34083238,110500.0,110490.0,0.18101185]
[1761085276113,0.34014693,110500.0,110490.0,0.18101185]
[1761085276289,0.34097931,110500.0,110490.0,0.18101185]
[1761085279384,0.34097931,110500.0,110490.0,0.29725185]
[1761085279559,0.00097931,110500.0,110490.0,0.29725185]
[1761085279760,0.00097931,110500.0,110490.0,0.30567234]
[1761085280580,0.00097931,110500.0,110490.0,0.30875001]
[1761085281393,0.00014693,110500.0,110490.0,0.39856902]
[1761085281614,0.00014693,110500.0,110490.0,0.30875001]
[1761085283929,0.00014693,110500.0,110490.0,0.39856902]
[1761085285352,0.00014693,110500.0,110490.0,0.39854345]
[1761085285773,0.00014693,110500.0,110490.0,0.39014853]
[1761085285975,0.00014693,110500.0,110490.0,0.39114853]
[1761085286179,0.00014693,110500.0,110490.0,0.39214853]
[1761085287837,0.00014693,110500.0,110490.0,0.41935831]
[1761085289375,0.00014693,110500.0,110490.0,0.81935831]
[1761085291034,0.00014693,110500.0,110490.0,0.41935831]
[1761085294590,0.00014693,110500.0,110490.0,0.02820978]
[1761085294799,0.00014693,110500.0,110450.0,0.0336]
[1761085295017,0.00014693,110500.0,110370.0,0.04579499]
[1761085295018,0.00999999,110390.0,110370.0,0.04579499]
[1761085295232,0.36999997,110360.0,110320.0,0.00268]
[1761085295469,0.36999997,110360.0,110350.0,0.15009507]
[1761085295470,0.34,110360.0,110350.0,0.15009507]
[1761085295691,0.34999999,110360.0,110350.0,0.15009507]
[1761085295918,0.34,110370.0,110350.0,0.49804]
[1761085296149,0.118102,110360.0,110350.0,0.49804]
[1761085296362,0.118102,110360.0,110350.0,0.61784]
[1761085296573,0.118102,110360.0,110350.0,0.61884]
[1761085297050,0.118102,110360.0,110350.0,0.8000815]
[1761085297270,0.118102,110360.0,110350.0,0.88990051]
[1761085298312,0.118102,110360.0,110350.0,0.77110051]
[1761085298521,0.43412278,110360.0,110350.0,0.58985901]
[1761085298725,0.43412278,110360.0,110350.0,0.70957901]
[1761085298944,0.43412278,110360.0,110350.0,0.49904]
[1761085299166,1.02676587,110360.0,110350.0,0.10104]
[1761085299371,1.14486787,110360.0,110350.0,0.21988]
[1761085299548,1.14486787,110360.0,110350.0,0.22088]
[1761085299869,0.96364279,110360.0,110350.0,0.21888]
[1761085300069,1.10344983,110360.0,110350.0,0.21888]
[1761085300252,1.10344983,110360.0,110350.0,0.21884]
[1761085300583,0.30843651,110340.0,110310.0,0.000906]
[1761085300772,0.34,110300.0,110280.0,0.93501106]
[1761085300988,0.30758502,110310.0,110250.0,0.0150463]
[1761085300989,3.07270822,110260.0,110250.0,0.0150463]
[1761085301149,0.18142235,110240.0,110230.0,0.11884]
[1761085301356,2.66865124,110220.0,110210.0,4.084e-05]
[1761085301521,1.10277402,110220.0,110210.0,0.12360084]
[1761085301725,0.92131875,110220.0,110210.0,0.13320407]
[1761085301936,0.65139751,110220.0,110210.0,0.13320407]
[1761085302139,0.57716128,110220.0,110210.0,0.13320407]
[1761085302330,0.01014629,110220.0,110210.0,0.3146758]
[1761085302767,0.0001463,110220.0,110210.0,0.3146758]
[1761085303073,0.0001463,110220.0,110210.0,0.40449481]
[1761085303400,0.0001463,110220.0,110210.0,0.80449481]
[1761085304253,0.0001463,110220.0,110210.0,0.13320407]
[1761085304470,0.0001463,110220.0,110210.0,0.42296198]
[1761085304626,0.08996531,110220.0,110210.0,0.13352407]
[1761085304827,0.0001463,110220.0,110210.0,0.73318297]
[1761085305062,0.0001463,110220.0,110210.0,0.7150358]
[1761085305423,0.00999999,110230.0,110220.0,0.18145321]
[1761085305628,0.00999999,110230.0,110220.0,0.00048785]
[1761085305826,0.00999999,110230.0,110220.0,0.00974727]
[1761085306053,0.00999999,110230.0,110220.0,0.31512254]
[1761085307222,0.75156286,110230.0,110220.0,0.00974727]
[1761085307428,0.15600126,110230.0,110220.0,0.13358727]
[1761085307622,0.10981899,110230.0,110220.0,0.13358727]
[1761085307831,0.11981898,110230.0,110220.0,0.13358727]
[1761085308519,0.11981898,110230.0,110220.0,0.00974727]
[1761085308718,0.60933594,110230.0,110220.0,0.13350727]
[1761085308920,0.55394176,110230.0,110220.0,0.13350727]
[1761085309508,0.77156284,110230.0,110220.0,0.13350727]
[1761085309718,0.59012404,110230.0,110220.0,0.13350727]
[1761085310288,0.77156284,110230.0,110220.0,0.13350727]
[1761085310513,0.86138185,110230.0,110220.0,0.13350727]
[1761085310883,0.14600127,110230.0,110220.0,0.13350727]
[1761085311089,0.11981898,110230.0,110220.0,0.13208861]
[1761085311308,0.55394176,110230.0,110220.0,0.00832861]
[1761085311510,0.73538056,110230.0,110220.0,0.13212861]
[1761085311712,0.55394176,110230.0,110220.0,0.13212861]
[1761085311937,0.17865452,110230.0,110220.0,0.13212861]
[1761085312137,0.73538056,110230.0,110220.0,0.13212861]
[1761085312290,0.55394176,110230.0,110220.0,0.13212861]
[1761085312495,0.55394176,110230.0,110220.0,0.00832861]
[1761085312702,0.73538056,110230.0,110220.0,0.13228861]
[1761085312897,0.11981898,110230.0,110220.0,0.13228861]
[1761085313084,0.55394176,110230.0,110220.0,0.13228861]
[1761085313287,0.55394176,110230.0,110220.0,0.11978861]
[1761085313510,0.01999998,110220.0,110210.0,4.084e-05]
[1761085313715,0.10981899,110220.0,110210.0,0.12444797]
[1761085313912,0.10981899,110220.0,110210.0,0.12440797]
[1761085314250,0.10981899,110220.0,110210.0,0.12475136]
[1761085314680,0.02999997,110220.0,110210.0,0.30622309]
[1761085315293,0.01999998,110220.0,110210.0,0.30622309]
[1761085315502,0.02999997,110230.0,110220.0,0.18145527]
[1761085316228,0.45981898,110230.0,110220.0,0.30521527]
[1761085316374,0.02999997,110230.0,110220.0,0.30521527]
[1761085317048,0.02999997,110240.0,110230.0,0.1814388]
[1761085317251,0.02999997,110240.0,110230.0,0.3051588]
[1761085317642,0.02999997,110240.0,110230.0,0.1814388]
[1761085317845,0.02999997,110240.0,110230.0,0.3051188]
[1761085319685,0.02999997,110240.0,110230.0,0.4]
[1761085319887,0.55394176,110240.0,110230.0,0.4]
[1761085320089,0.11981898,110240.0,110220.0,0.1814549]
[1761085320307,0.02999997,110230.0,110220.0,0.27127391]
[1761085320507,0.01999998,110270.0,110230.0,2.0]
[1761085320821,0.00999999,110270.0,110250.0,0.181404]
[1761085321035,0.02999997,110270.0,110250.0,0.27820721]
[1761085321238,0.02999997,110260.0,110250.0,0.09808]
[1761085321628,0.02999997,110260.0,110250.0,0.40348589]
[1761085322050,0.0301475,110260.0,110250.0,0.40348589]
[1761085322258,0.0301475,110260.0,110250.0,0.27948589]
[1761085322459,0.0301475,110260.0,110250.0,0.40344589]
[1761085322670,0.0301475,110260.0,110230.0,0.02727509]
[1761085322671,0.18142235,110240.0,110230.0,0.02727509]
[1761085322887,0.55145524,110220.0,110210.0,0.00038423]
[1761085323128,0.64127425,110220.0,110210.0,0.00038423]
[1761085323338,0.45981898,110220.0,110210.0,0.12478423]
[1761085323677,0.64127425,110220.0,110210.0,0.12478423]
[1761085324127,0.64127425,110220.0,110210.0,0.12527136]
[1761085324700,0.01999998,110220.0,110210.0,0.30674309]
[1761085324900,0.00999999,110240.0,110230.0,0.1814388]
[1761085325165,0.00999999,110240.0,110230.0,0.32315783]
[1761085325340,0.00999999,110240.0,110230.0,0.3057188]
[1761085325497,0.01999998,110240.0,110230.0,0.3057188]
[1761085325701,0.02999997,110250.0,110240.0,0.18140924]
[1761085325903,0.00999999,110250.0,110240.0,0.19955147]
[1761085326097,0.02999997,110250.0,110240.0,0.59955147]
[1761085326308,0.02999997,110250.0,110240.0,0.58140924]
[1761085326978,0.21140586,110250.0,110240.0,0.4]
[1761085327301,0.05114056,110250.0,110240.0,0.12436]
[1761085327462,0.02999997,110250.0,110240.0,0.12436]
[1761085328240,0.02999997,110250.0,110240.0,0.30578235]
[1761085328621,0.00999999,110250.0,110240.0,0.12436]
[1761085328826,0.02999997,110250.0,110240.0,0.14250223]
[1761085329181,0.02999997,110250.0,110240.0,0.32392458]
[1761085329482,0.04921405,110250.0,110240.0,0.12424]
[1761085329885,0.04921405,110250.0,110240.0,0.30566235]
[1761085330088,0.02999997,110250.0,110240.0,0.12424]
[1761085330291,0.07326082,110250.0,110240.0,0.12424]
[1761085331108,0.07326082,110250.0,110240.0,0.12300279]
[1761085331313,0.07326082,110250.0,110240.0,0.30442514]
[1761085331314,0.04927725,110250.0,110240.0,0.30442514]
[1761085331492,0.01927728,110250.0,110240.0,0.39424415]
[1761085331697,0.02999997,110270.0,110250.0,0.18140589]
[1761085331897,0.04928079,110270.0,110260.0,0.30542944]
[1761085332922,0.04942835,110270.0,110260.0,0.30542944]
[1761085333542,0.00999999,110260.0,110240.0,0.18141028]
[1761085333745,0.02999997,110250.0,110240.0,0.18142182]
[1761085333907,0.02999997,110250.0,110240.0,0.30542182]
[1761085334595,0.00999999,110250.0,110240.0,0.30542182]